bitfinex-derivatives/quotes_BNBF0:USTF0_20251002
["timestamp","ask_amount","ask_price","bid_price","bid_amount"]
[1759364750157,0.90561825,1030.0,1028.2,0.81314287]
[1759364750456,0.86527895,1030.5,1028.2,0.81314287]
[1759364750457,0.90561825,1029.9,1028.2,0.81314287]
[1759364750658,0.90561825,1029.8,1028.2,0.81314287]
[1759364750858,0.90561825,1029.7,1028.2,0.81314287]
[1759364751058,0.86527895,1030.5,1028.2,0.81314287]
[1759364751263,0.90585287,1030.4,1028.2,0.81314287]
[1759364751460,0.90585287,1030.3,1028.2,0.81314287]
[1759364751662,0.90585287,1030.2,1028.2,0.81314287]
[1759364751862,0.90585287,1030.1,1028.2,0.81314287]
[1759364752062,0.90585287,1030.0,1028.2,0.81314287]
[1759364752262,0.90585287,1029.9,1028.2,0.81314287]
[1759364752565,0.90585287,1029.8,1028.3,0.64422518]
[1759364752762,0.90585287,1029.7,1028.3,0.64422518]
[1759364752963,0.90585287,1029.6,1028.3,0.64422518]
[1759364753166,0.86527895,1030.1,1028.3,0.64422518]
[1759364753361,0.90635314,1030.0,1028.3,0.64422518]
[1759364753565,0.90635314,1029.9,1028.3,0.64422518]
[1759364753764,0.90635314,1029.8,1028.3,0.64422518]
[1759364753965,0.90635314,1029.7,1028.3,0.64422518]
[1759364754267,0.90635314,1029.6,1028.3,0.64422518]
[1759364754464,0.86527895,1030.1,1028.3,0.64422518]
[1759364754667,0.90663811,1030.0,1028.3,0.64422518]
[1759364754967,0.90663811,1029.9,1028.3,0.64422518]
[1759364755167,0.90663811,1029.8,1028.3,0.64422518]
[1759364755364,0.90663811,1029.7,1028.2,0.81314287]
[1759364755568,0.90663811,1029.6,1028.2,0.81314287]
[1759364755867,0.90663811,1029.5,1028.2,0.81314287]
[1759364756068,0.86527895,1030.0,1028.2,0.81314287]
[1759364756264,0.90732242,1029.9,1028.2,0.81314287]
[1759364756468,0.90732242,1029.8,1028.2,0.81314287]
[1759364756768,0.90732242,1029.7,1028.2,0.81314287]
[1759364757065,0.90732242,1029.6,1028.2,0.81314287]
[1759364757270,0.90732242,1029.5,1028.2,0.81314287]
[1759364757467,0.86527895,1029.9,1028.2,0.81314287]
[1759364757670,0.90769251,1029.8,1028.2,0.81314287]
[1759364757871,0.90769251,1029.7,1028.2,0.81314287]
[1759364758069,0.90769251,1029.6,1028.2,0.81314287]
[1759364758372,0.90769251,1029.5,1028.3,0.64422518]
[1759364758573,0.86527895,1029.9,1028.3,0.64422518]
[1759364758774,0.90808906,1029.8,1028.2,0.16891769]
[1759364758972,0.90808906,1029.7,1028.2,0.16891769]
[1759364759274,0.90808906,1029.6,1028.2,0.16891769]
[1759364759571,0.90808906,1029.5,1028.2,0.16891769]
[1759364759770,0.90808906,1029.4,1028.2,0.16891769]
[1759364759975,0.90808906,1029.3,1028.2,0.16891769]
[1759364760176,0.86527895,1030.1,1028.2,0.16891769]
[1759364760375,0.90849405,1030.0,1028.2,0.16891769]
[1759364760572,0.90849405,1029.9,1028.2,0.16891769]
[1759364760871,0.90849405,1029.8,1028.2,0.16891769]
[1759364761072,0.90849405,1029.7,1028.2,0.16891769]
[1759364761275,0.90849405,1029.6,1028.2,0.16891769]
[1759364761472,0.90849405,1029.5,1028.2,0.16891769]
[1759364761672,0.90849405,1029.4,1028.2,0.16891769]
[1759364761871,0.90849405,1029.3,1028.2,0.16891769]
[1759364762075,0.86527895,1030.0,1028.2,0.16891769]
[1759364762276,0.90948794,1029.9,1028.2,0.16891769]
[1759364762474,0.90948794,1029.8,1028.2,0.16891769]
[1759364762777,0.90948794,1029.7,1028.2,0.16891769]
[1759364762974,0.90948794,1029.6,1028.2,0.16891769]
[1759364763179,0.90948794,1029.5,1028.2,0.16891769]
[1759364763379,0.90948794,1029.4,1028.2,0.16891769]
[1759364763674,0.90948794,1029.3,1028.2,0.16891769]
[1759364763879,0.86527895,1029.9,1028.2,0.16891769]
[1759364764080,0.90975469,1029.8,1028.2,0.16891769]
[1759364764379,0.90975469,1029.7,1028.2,0.16891769]
[1759364764675,0.90975469,1029.6,1028.2,0.16891769]
[1759364764879,0.90975469,1029.5,1028.2,0.16891769]
[1759364765080,0.90975469,1029.4,1028.2,0.16891769]
[1759364765274,0.90975469,1029.3,1028.2,0.16891769]
[1759364765476,0.90975469,1029.2,1028.1,0.64422518]
[1759364765677,0.90975469,1029.1,1028.1,0.64422518]
[1759364765879,0.86527895,1029.6,1028.1,0.64422518]
[1759364766180,0.91083015,1029.5,1028.1,0.64874652]
[1759364766380,0.91083015,1029.4,1028.1,0.64874652]
[1759364766580,0.91083015,1029.3,1028.1,0.64874652]
[1759364766777,0.91083015,1029.2,1028.1,0.64874652]
[1759364766977,0.91083015,1029.1,1028.1,0.64874652]
[1759364767282,0.86527895,1029.6,1028.0,0.81788423]
[1759364767581,0.91027652,1029.5,1028.0,0.81788423]
[1759364767781,0.91027652,1029.4,1028.0,0.81788423]
[1759364768081,0.91027652,1029.3,1028.0,0.81788423]
[1759364768279,0.91027652,1029.2,1028.0,0.81788423]
[1759364768485,0.91027652,1029.1,1028.0,0.81788423]
[1759364768784,0.86527895,1029.5,1028.0,0.81788423]
[1759364768985,0.91000246,1029.4,1028.0,0.81788423]
[1759364769280,0.91000246,1029.3,1028.0,0.16913771]
[1759364769484,0.91000246,1029.2,1028.0,0.16913771]
[1759364769679,0.91000246,1029.1,1028.0,0.16913771]
[1759364769882,0.91000246,1029.0,1028.0,0.16913771]
[1759364770081,0.86527895,1029.4,1028.0,0.16913771]
[1759364770281,0.90974212,1029.3,1028.0,0.16913771]
[1759364770480,0.90974212,1029.2,1028.0,0.16913771]
[1759364770780,0.90974212,1029.1,1028.0,0.16913771]
[1759364770983,0.90974212,1029.0,1028.0,0.16913771]
[1759364771181,0.86527895,1029.4,1028.0,0.16913771]
[1759364771484,0.90907533,1029.3,1028.0,0.16913771]
[1759364771683,0.90907533,1029.2,1028.0,0.16913771]
[1759364771880,0.90907533,1029.1,1028.0,0.16913771]
[1759364772182,0.86527895,1029.7,1028.0,0.16913771]
[1759364772379,0.90877653,1029.6,1028.0,0.16913771]
[1759364772580,0.90877653,1029.5,1028.0,0.16913771]
[1759364772781,0.90877653,1029.4,1027.7,0.64874652]
[1759364772981,0.86527895,1029.2,1027.7,0.81791548]
[1759364773180,0.90877653,1029.1,1027.7,0.81791548]
[1759364773384,0.90877653,1029.0,1027.7,0.81791548]
[1759364773585,0.90877653,1028.9,1027.7,0.81791548]
[1759364773782,0.90877653,1028.8,1027.7,0.81791548]
[1759364774083,0.86527895,1029.3,1027.7,0.81791548]
[1759364774287,0.90834271,1029.2,1027.7,0.81791548]
[1759364774584,0.90834271,1029.1,1027.7,0.81791548]
[1759364774784,0.90834271,1029.0,1027.7,0.81791548]
[1759364774982,0.90834271,1028.9,1027.7,0.81791548]
[1759364775186,0.86527895,1029.3,1027.7,0.16916896]
[1759364775387,0.90765585,1029.2,1027.7,0.16916896]
[1759364775584,0.90765585,1029.1,1027.7,0.16916896]
[1759364775787,0.90765585,1029.0,1027.7,0.16916896]
[1759364775984,0.90765585,1028.9,1027.7,0.81791548]
[1759364776188,0.86527895,1029.4,1027.7,0.81791548]
[1759364776384,0.90736651,1029.3,1027.7,0.81791548]
[1759364776683,0.90736651,1029.2,1027.7,0.81791548]
[1759364776885,0.90736651,1029.1,1027.7,0.16916896]
[1759364777086,0.90736651,1029.0,1027.7,0.16916896]
[1759364777289,0.90736651,1028.9,1027.7,0.81791548]
[1759364777487,0.86527895,1029.5,1027.7,0.81791548]
[1759364777687,0.90707857,1029.4,1027.7,0.16916896]
[1759364777988,0.90707857,1029.3,1027.7,0.16916896]
[1759364778187,0.90707857,1029.2,1027.7,0.16916896]
[1759364778386,0.90707857,1029.1,1027.7,0.16916896]
[1759364778586,0.90707857,1029.0,1027.7,0.16916896]
[1759364778887,0.86527895,1029.5,1027.7,0.16916896]
[1759364779189,0.90698104,1029.4,1027.7,0.16916896]
[1759364779388,0.90698104,1029.3,1027.7,0.16916896]
[1759364779587,0.90698104,1029.2,1027.7,0.16916896]
[1759364779791,0.90698104,1029.1,1027.7,0.16916896]
[1759364779991,0.90698104,1029.0,1027.7,0.16916896]
[1759364780192,0.86527895,1029.5,1027.7,0.16916896]
[1759364780388,0.90671266,1029.4,1027.7,0.16916896]
[1759364780691,0.90671266,1029.3,1027.7,0.16916896]
[1759364780886,0.90671266,1029.2,1027.7,0.16916896]
[1759364781092,0.90671266,1029.1,1027.7,0.16916896]
[1759364781288,0.90671266,1029.0,1027.7,0.16916896]
[1759364781492,0.86527895,1029.5,1027.7,0.16916896]
[1759364781688,0.90669396,1029.4,1027.7,0.16916896]
[1759364781888,0.86527895,1029.5,1027.7,0.16916896]
[1759364781889,0.90669396,1029.3,1027.7,0.16916896]
[1759364782189,0.90669396,1029.2,1027.7,0.16916896]
[1759364782390,0.90669396,1029.1,1027.7,0.16916896]
[1759364782590,0.90669396,1029.0,1027.7,0.16916896]
[1759364782792,0.86527895,1029.5,1027.7,0.16916896]
[1759364782992,0.90670048,1029.4,1027.7,0.16916896]
[1759364783192,0.90670048,1029.3,1027.7,0.16916896]
[1759364783388,0.90670048,1029.2,1027.7,0.16916896]
[1759364783588,0.90670048,1029.1,1027.7,0.16916896]
[1759364783789,0.90670048,1029.0,1027.7,0.16916896]
[1759364783990,0.86527895,1029.5,1027.7,0.16916896]
[1759364784293,0.90664383,1029.4,1027.7,0.16916896]
[1759364784491,0.90664383,1029.3,1027.7,0.16916896]
[1759364784694,0.90664383,1029.2,1027.7,0.16916896]
[1759364784891,0.90664383,1029.1,1027.7,0.16916896]
[1759364785190,0.86527895,1029.5,1027.7,0.16916896]
[1759364785191,0.90664383,1029.0,1027.7,0.16916896]
[1759364785394,0.86527895,1029.5,1027.7,0.16916896]
[1759364785594,0.90647717,1029.4,1027.7,0.16916896]
[1759364785794,0.86527895,1029.5,1027.7,0.16916896]
[1759364785795,0.90647717,1029.3,1027.7,0.16916896]
[1759364785996,0.90647717,1029.2,1027.7,0.16916896]
[1759364786193,0.90647717,1029.1,1027.7,0.16916896]
[1759364786394,0.90647717,1029.0,1027.7,0.16916896]
[1759364786608,0.86527895,1029.5,1027.7,0.16916896]
[1759364786802,0.90642061,1029.4,1027.7,0.16916896]
[1759364787005,0.90642061,1029.3,1027.7,0.16916896]
[1759364787203,0.90642061,1029.2,1027.7,0.16916896]
[1759364787402,0.90642061,1029.1,1027.7,0.16916896]
[1759364787601,0.90642061,1029.0,1027.7,0.16916896]
[1759364787806,0.86527895,1029.5,1027.7,0.16916896]
[1759364788104,0.90633775,1029.4,1027.7,0.16916896]
[1759364788301,0.90633775,1029.3,1027.7,0.16916896]
[1759364788508,0.90633775,1029.2,1027.7,0.16916896]
[1759364788704,0.90633775,1029.1,1027.7,0.16916896]
[1759364789009,0.90633775,1029.0,1027.7,0.16916896]
[1759364789208,0.86527895,1029.5,1027.7,0.16916896]
[1759364789402,0.90628963,1029.4,1027.7,0.16916896]
[1759364789706,0.90628963,1029.3,1027.7,0.16916896]
[1759364789904,0.90628963,1029.2,1027.7,0.16916896]
[1759364790104,0.90628963,1029.1,1027.7,0.16916896]
[1759364790304,0.90628963,1029.0,1027.7,0.16916896]
[1759364790505,0.86527895,1029.5,1027.7,0.16916896]
[1759364790704,1.77156987,1029.4,1027.7,0.16916896]
[1759364790908,0.90629092,1029.3,1027.7,0.16916896]
[1759364792312,0.90629092,1029.2,1027.7,0.16916896]
[1759364792509,0.90629092,1029.1,1027.7,0.16916896]
[1759364792714,0.90629092,1029.0,1027.7,0.16916896]
[1759364792914,0.90629092,1028.9,1027.7,0.16916896]
[1759364793112,0.86527895,1029.5,1027.7,0.16916896]
[1759364793414,0.9063742,1029.4,1027.7,0.16916896]
[1759364793615,0.9063742,1029.3,1027.7,0.16916896]
[1759364793813,0.86527895,1029.6,1027.7,0.16916896]
[1759364793814,0.9063742,1029.2,1027.7,0.16916896]
[1759364794010,0.9063742,1029.1,1027.7,0.16916896]
[1759364794213,0.9063742,1029.0,1027.7,0.16916896]
[1759364794416,0.86527895,1029.6,1027.7,0.16916896]
[1759364794716,0.90640432,1029.5,1027.7,0.16916896]
[1759364794915,0.90640432,1029.4,1027.7,0.16916896]
[1759364795215,0.90640432,1029.3,1027.7,0.16916896]
[1759364795410,0.90640432,1029.2,1027.7,0.16916896]
[1759364795711,0.90640432,1029.1,1027.7,0.16916896]
[1759364795911,0.90640432,1029.0,1027.7,0.16916896]
[1759364796112,0.86527895,1029.7,1027.7,0.16916896]
[1759364796314,0.90660465,1029.6,1027.7,0.16916896]
[1759364796516,0.90660465,1029.5,1027.7,0.16916896]
[1759364796813,0.90660465,1029.4,1027.7,0.16916896]
[1759364797015,0.90660465,1029.3,1027.7,0.16916896]
[1759364797211,0.90660465,1029.2,1027.7,0.16916896]
[1759364797514,0.90660465,1029.1,1027.7,0.16916896]
[1759364797715,0.90660465,1029.0,1027.7,0.16916896]
[1759364797915,0.86527895,1029.7,1027.7,0.16916896]
[1759364798212,0.9067297,1029.6,1027.7,0.16916896]
[1759364798511,0.9067297,1029.5,1027.7,0.16916896]
[1759364798712,0.9067297,1029.4,1027.7,0.16916896]
[1759364798910,0.9067297,1029.3,1027.7,0.16916896]
[1759364799113,0.9067297,1029.2,1027.7,0.16916896]
[1759364799315,0.9067297,1029.1,1027.7,0.16916896]
[1759364799512,0.9067297,1029.0,1027.7,0.16916896]
[1759364799717,0.86527895,1029.7,1027.7,0.16916896]
[1759364799917,0.90702632,1029.6,1027.7,0.16916896]
[1759364800214,0.90702632,1029.5,1027.7,0.16916896]
[1759364800414,0.90702632,1029.4,1027.7,0.81791548]
[1759364800614,0.90702632,1029.3,1027.7,0.81791548]
[1759364800816,0.90702632,1029.2,1027.7,0.81791548]
[1759364801017,0.90702632,1029.1,1027.7,0.81791548]
[1759364801218,0.86527895,1029.7,1027.7,0.81791548]
[1759364801518,0.90730481,1029.6,1027.7,0.81791548]
[1759364801713,0.90730481,1029.5,1027.7,0.81791548]
[1759364802013,0.90730481,1029.4,1027.7,0.81791548]
[1759364802218,0.90730481,1029.3,1027.8,0.64874652]
[1759364802416,0.90730481,1029.2,1027.8,0.64874652]
[1759364802613,0.90730481,1029.1,1027.8,0.64874652]
[1759364802914,0.86527895,1029.7,1027.8,0.64874652]
[1759364803116,0.90751945,1029.6,1027.8,0.64874652]
[1759364803318,0.90751945,1029.5,1027.8,0.64874652]
[1759364806114,1.7727984,1029.5,1027.8,0.64874652]
[1759364806318,0.90751945,1029.4,1027.8,0.64874652]
[1759364806520,0.90751945,1029.3,1027.9,0.64874652]
[1759364806819,0.90751945,1029.2,1027.9,0.64874652]
[1759364807021,0.90751945,1029.1,1027.9,0.64874652]
[1759364807218,0.90751945,1029.0,1027.9,0.64874652]
[1759364807421,0.86527895,1029.5,1027.9,0.64874652]
[1759364807621,0.90705847,1029.4,1027.9,0.64874652]
[1759364807821,0.90705847,1029.3,1027.9,0.64874652]
[1759364808020,0.90705847,1029.2,1027.9,0.64874652]
[1759364808223,0.90705847,1029.1,1027.9,0.64874652]
[1759364808518,0.90705847,1029.0,1027.9,0.64874652]
[1759364808722,0.86527895,1029.4,1027.9,0.64874652]
[1759364808920,0.90739877,1029.3,1027.9,0.64874652]
[1759364809121,0.90739877,1029.2,1027.9,0.64874652]
[1759364809324,0.90739877,1029.1,1027.9,0.64874652]
[1759364809621,0.90739877,1029.0,1028.0,0.64874652]
[1759364809824,0.86527895,1029.4,1028.0,0.64874652]
[1759364810125,0.90778318,1029.3,1028.0,0.64874652]
[1759364810325,0.90778318,1029.2,1028.0,0.64874652]
[1759364812123,0.90778318,1029.2,1028.1,0.64874652]
[1759364813222,0.90778318,1029.2,1028.2,0.64874652]
[1759364813427,0.90778318,1029.1,1028.2,0.64874652]
[1759364813626,1.03440927,1029.5,1028.2,0.64874652]
[1759364813827,0.90911635,1029.4,1028.2,0.64874652]
[1759364814024,0.90911635,1029.3,1028.2,0.64874652]
[1759364814230,0.90911635,1029.2,1028.2,0.64874652]
[1759364814430,0.90911635,1029.1,1028.2,0.64874652]
[1759364814625,1.03440927,1029.5,1028.2,0.64874652]
[1759364814826,0.90947781,1029.4,1028.2,0.64874652]
[1759364815127,0.90947781,1029.3,1028.2,0.64874652]
[1759364817431,0.90947781,1029.2,1028.2,0.64874652]
[1759364817634,0.90947781,1029.1,1028.2,0.64874652]
[1759364817934,0.91037336,1029.0,1028.2,0.64874652]
[1759364818233,0.86527895,1029.4,1028.3,0.64874652]
[1759364818434,0.91068983,1029.3,1028.3,0.64874652]
[1759364818632,0.91068983,1029.2,1028.3,0.64874652]
[1759364818830,0.91068983,1029.1,1028.3,0.64874652]
[1759364819033,0.91068983,1029.0,1028.3,0.64874652]
[1759364819234,0.86527895,1029.6,1028.2,0.64874652]
[1759364819431,0.910614,1029.5,1028.3,0.64874652]
[1759364819630,0.910614,1029.4,1028.3,0.64874652]
[1759364819834,0.910614,1029.3,1028.3,0.64874652]
[1759364820131,0.910614,1029.2,1028.4,0.64874652]
[1759364820330,1.03439077,1029.7,1028.4,0.64874652]
[1759364820530,0.91060084,1029.6,1028.3,0.64874652]
[1759364820735,0.91060084,1029.5,1028.3,0.64874652]
[1759364820935,0.91060084,1029.4,1028.3,0.64874652]
[1759364821232,0.16911182,1029.7,1028.3,0.64874652]
[1759364821233,0.91060084,1029.3,1028.3,0.64874652]
[1759364821435,0.91060084,1029.2,1028.3,0.64874652]
[1759364821731,1.03439077,1029.7,1028.4,0.64874652]
[1759364821932,0.9104861,1029.6,1028.4,0.64874652]
[1759364822135,0.9104861,1029.5,1028.4,0.64874652]
[1759364822335,0.9104861,1029.4,1028.4,0.64874652]
[1759364822536,0.9104861,1029.3,1028.4,0.64874652]
[1759364822736,0.16911182,1029.7,1028.3,0.64874652]
[1759364822936,0.91033613,1029.6,1028.3,0.64874652]
[1759364823137,0.91033613,1029.5,1028.3,0.64874652]
[1759364823335,0.91033613,1029.4,1028.3,0.64874652]
[1759364823635,0.16911182,1029.7,1028.3,0.64874652]
[1759364823636,0.91033613,1029.3,1028.3,0.64874652]
[1759364823831,1.03439077,1029.7,1028.4,0.64874652]
[1759364824138,0.91020632,1029.6,1028.4,0.64874652]
[1759364824332,0.91020632,1029.5,1028.4,0.64874652]
[1759364824535,0.91020632,1029.4,1028.4,0.64874652]
[1759364824735,0.91020632,1029.3,1028.4,0.64874652]
[1759364824935,1.03439077,1029.7,1028.4,0.64874652]
[1759364825133,0.9100735,1029.6,1028.4,0.64874652]
[1759364825333,0.9100735,1029.5,1028.4,0.64874652]
[1759364825634,0.9100735,1029.4,1028.4,0.64874652]
[1759364825836,0.9100735,1029.3,1028.4,0.64874652]
[1759364826034,0.16911182,1029.7,1028.4,0.64874652]
[1759364826232,0.90980726,1029.6,1028.4,0.64874652]
[1759364826436,0.90980726,1029.5,1028.3,0.64874652]
[1759364826637,0.90980726,1029.4,1028.3,0.64874652]
[1759364826834,0.90980726,1029.3,1028.3,0.64874652]
[1759364827036,0.16911182,1029.7,1028.3,0.64874652]
[1759364827236,0.90970502,1029.6,1028.3,0.64874652]
[1759364827437,0.16911182,1029.7,1028.3,0.64874652]
[1759364827438,0.90970502,1029.5,1028.3,0.64874652]
[1759364827641,0.90970502,1029.4,1028.3,0.64874652]
[1759364827841,0.90970502,1029.3,1028.3,0.64874652]
[1759364828041,0.16911182,1029.7,1028.3,0.64874652]
[1759364828341,0.9095935,1029.6,1028.3,0.64874652]
[1759364828539,0.9095935,1029.5,1028.3,0.64874652]
[1759364828742,0.9095935,1029.4,1028.3,0.64874652]
[1759364829045,0.9095935,1029.3,1028.3,0.64874652]
[1759364829255,0.16911182,1029.7,1028.3,0.64874652]
[1759364829447,0.90944379,1029.6,1028.3,0.64874652]
[1759364829646,0.16911182,1029.7,1028.3,0.64874652]
[1759364829647,0.90944379,1029.5,1028.3,0.64874652]
[1759364829846,0.90944379,1029.4,1028.3,0.64874652]
[1759364830043,0.90944379,1029.3,1028.3,0.64874652]
[1759364830243,0.16911182,1029.7,1028.3,0.64874652]
[1759364830543,0.90933007,1029.6,1028.3,0.64874652]
[1759364830744,0.90933007,1029.5,1028.3,0.64874652]
[1759364831044,0.9093304,1029.4,1028.3,0.64874652]
[1759364831347,0.9093304,1029.3,1028.3,0.64874652]
[1759364831544,0.16911182,1029.7,1028.3,0.64874652]
[1759364831745,0.90922314,1029.6,1028.3,0.64874652]
[1759364831946,0.90922314,1029.5,1028.3,0.64874652]
[1759364832144,0.90922314,1029.4,1028.3,0.64874652]
[1759364832345,0.90922314,1029.3,1028.3,0.64874652]
[1759364832645,0.16911182,1029.7,1028.3,0.64874652]
[1759364832848,0.90912379,1029.6,1028.3,0.64874652]
[1759364833051,0.90912379,1029.5,1028.3,0.64874652]
[1759364833347,0.90912379,1029.4,1028.3,0.64874652]
[1759364833551,0.90912379,1029.3,1028.3,0.64874652]
[1759364833847,0.16911182,1029.7,1028.2,0.64874652]
[1759364834046,0.9093305,1029.6,1028.2,0.64874652]
[1759364834247,0.9093305,1029.5,1028.2,0.64874652]
[1759364834546,0.9093305,1029.4,1028.2,0.64874652]
[1759364834749,0.9093305,1029.3,1028.2,0.64874652]
[1759364834953,0.16911182,1029.7,1028.2,0.64874652]
[1759364835253,0.90932325,1029.6,1028.2,0.64874652]
[1759364835455,0.90932325,1029.5,1028.1,0.64874652]
[1759364835653,0.90932325,1029.4,1028.1,0.64874652]
[1759364835857,0.90932325,1029.3,1028.1,0.64874652]
[1759364836056,0.16911182,1029.7,1028.1,0.64874652]
[1759364836354,0.90931625,1029.6,1028.1,0.64874652]
[1759364836559,0.90931625,1029.5,1028.1,0.64874652]
[1759364836756,0.90931625,1029.4,1028.1,0.64874652]
[1759364836959,0.90931625,1029.3,1028.1,0.64874652]
[1759364837155,0.16911182,1029.7,1028.1,0.64874652]
[1759364837354,0.90932832,1029.6,1028.1,0.64874652]
[1759364837655,0.90932832,1029.5,1028.1,0.64874652]
[1759364837957,0.90932832,1029.4,1028.1,0.64874652]
[1759364838156,0.90932832,1029.3,1028.1,0.64874652]
[1759364838359,0.16911182,1029.7,1028.1,0.64874652]
[1759364838558,0.90933028,1029.6,1028.1,0.64874652]
[1759364838759,0.90933028,1029.5,1028.1,0.64874652]
[1759364839059,0.90933028,1029.4,1028.1,0.64874652]
[1759364839259,0.90933028,1029.3,1028.1,0.64874652]
[1759364839456,0.16911182,1029.7,1028.1,0.64874652]
[1759364839660,0.9093458,1029.6,1028.1,0.64874652]
[1759364839860,0.9093458,1029.5,1028.1,0.64874652]
[1759364840059,0.9093458,1029.4,1028.1,0.64874652]
[1759364840360,0.9093458,1029.3,1028.1,0.64874652]
[1759364840558,0.16911182,1029.7,1028.1,0.64874652]
[1759364840757,0.90936425,1029.6,1028.1,0.64874652]
[1759364840957,0.90936425,1029.5,1028.1,0.64874652]
[1759364841161,0.90936425,1029.4,1028.1,0.64874652]
[1759364841361,0.90936425,1029.3,1028.1,0.64874652]
[1759364841561,0.90936425,1029.2,1028.1,0.64874652]
[1759364841762,0.16911182,1029.7,1028.1,0.64874652]
[1759364842062,0.90942718,1029.6,1028.1,0.64874652]
[1759364842261,0.90942718,1029.5,1028.2,0.64874652]
[1759364842459,0.90942718,1029.4,1028.1,0.64874652]
[1759364842656,0.90942718,1029.3,1028.1,0.64874652]
[1759364842862,0.90942718,1029.2,1028.1,0.64874652]
[1759364843171,0.90942718,1029.1,1028.1,0.64874652]
[1759364843359,0.86527895,1029.6,1028.1,0.64874652]
[1759364843560,0.90959482,1029.5,1028.1,0.64874652]
[1759364843759,0.90959482,1029.4,1028.1,0.64874652]
[1759364844061,0.90959482,1029.3,1028.1,0.64874652]
[1759364844260,0.90959482,1029.2,1028.1,0.64874652]
[1759364844460,0.90959482,1029.1,1028.1,0.64874652]
[1759364844667,0.86527895,1029.5,1028.1,0.64874652]
[1759364844861,0.90966659,1029.4,1028.1,0.64874652]
[1759364845060,0.90966659,1029.3,1028.1,0.64874652]
[1759364845359,0.90966659,1029.2,1028.1,0.64874652]
[1759364845561,0.90966659,1029.1,1028.1,0.64874652]
[1759364845865,0.86527895,1029.5,1028.1,0.64874652]
[1759364846065,0.90974593,1029.4,1028.1,0.64874652]
[1759364846364,0.90974593,1029.3,1028.1,0.64874652]
[1759364846659,0.90974593,1029.2,1028.1,0.64874652]
[1759364846858,0.90974593,1029.1,1028.0,0.64874652]
[1759364847065,0.90974593,1029.0,1028.0,0.64874652]
[1759364847261,0.90974593,1028.9,1028.0,0.64874652]
[1759364847465,0.9099553,1028.8,1027.9,0.64874652]
[1759364847764,0.86527895,1029.2,1027.9,0.64874652]
[1759364847964,0.90998597,1029.1,1027.9,0.64874652]
[1759364848167,0.90998597,1029.0,1027.9,0.64874652]
[1759364848366,0.90998597,1028.9,1027.9,0.64874652]
[1759364848667,0.90998597,1028.8,1027.9,0.64874652]
[1759364848864,0.86527895,1029.2,1027.9,0.64874652]
[1759364849067,0.90996887,1029.1,1027.9,0.64874652]
[1759364849267,0.90996887,1029.0,1027.9,0.64874652]
[1759364849465,0.90996887,1028.9,1027.9,0.64874652]
[1759364849764,0.90996887,1028.8,1027.9,0.64874652]
[1759364849964,0.86527895,1029.2,1027.9,0.64874652]
[1759364850166,0.90994332,1029.1,1027.9,0.64874652]
[1759364850369,0.90994332,1029.0,1027.9,0.64874652]
[1759364850566,0.90994332,1028.9,1027.9,0.64874652]
[1759364850766,0.90994332,1028.8,1027.9,0.64874652]
[1759364850971,0.86527895,1029.2,1027.9,0.64874652]
[1759364851168,0.90989451,1029.1,1027.9,0.64874652]
[1759364851369,0.90989451,1029.0,1027.9,0.64874652]
[1759364851567,0.90989451,1028.9,1027.9,0.64874652]
[1759364851770,0.90989451,1028.8,1027.9,0.64874652]
[1759364851968,0.86527895,1029.2,1027.9,0.64874652]
[1759364852170,0.909865,1029.1,1027.9,0.64874652]
[1759364852369,0.909865,1029.0,1027.9,0.64874652]
[1759364852567,0.909865,1028.9,1027.9,0.64874652]
[1759364852769,0.909865,1028.8,1027.9,0.64874652]
[1759364852973,0.86527895,1029.2,1027.9,0.64874652]
[1759364853174,0.90983322,1029.1,1027.9,0.64874652]
[1759364853473,0.86527895,1029.2,1027.9,0.64874652]
[1759364853474,0.90983322,1029.0,1027.9,0.64874652]
[1759364853672,0.90983322,1028.9,1027.9,0.64874652]
[1759364853872,0.90983322,1028.8,1027.9,0.64874652]
[1759364854072,0.86527895,1029.2,1027.9,0.64874652]
[1759364854269,0.90974271,1029.1,1027.9,0.64874652]
[1759364854469,0.90974271,1029.0,1027.9,0.64874652]
[1759364854772,0.90974271,1028.9,1027.9,0.64874652]
[1759364854971,0.90974271,1028.8,1027.9,0.64874652]
[1759364855170,0.86527895,1029.2,1027.9,0.64874652]
[1759364855471,0.90968605,1029.1,1027.9,0.64874652]
[1759364855669,0.90968605,1029.0,1027.9,0.64874652]
[1759364855869,0.90968605,1028.9,1027.9,0.64874652]
[1759364856073,0.90968605,1028.8,1027.9,0.64874652]
[1759364856270,0.86527895,1029.2,1027.8,0.64874652]
[1759364856470,0.90961608,1029.1,1027.8,0.64874652]
[1759364856671,0.90961608,1029.0,1027.8,0.64874652]
[1759364856875,0.90961608,1028.9,1027.8,0.64874652]
[1759364857077,0.90961608,1028.8,1027.8,0.64874652]
[1759364857372,0.86527895,1029.3,1027.8,0.64874652]
[1759364857570,0.90953087,1029.2,1027.8,0.64874652]
[1759364857872,0.90953087,1029.1,1027.8,0.64874652]
[1759364858172,0.86527895,1029.3,1027.8,0.64874652]
[1759364858173,0.90953087,1029.0,1027.8,0.64874652]
[1759364858375,0.90953087,1028.9,1027.7,0.81791548]
[1759364858576,0.90953087,1028.8,1027.8,0.64874652]
[1759364858773,0.86527895,1029.3,1027.8,0.64874652]
[1759364858978,0.90945598,1029.2,1027.8,0.64874652]
[1759364859180,0.90945598,1029.1,1027.8,0.64874652]
[1759364859479,0.90945598,1029.0,1027.7,0.81791548]
[1759364859676,0.90945598,1028.9,1027.7,0.81791548]
[1759364859880,0.90945598,1028.8,1027.7,0.81791548]
[1759364860179,0.86527895,1029.3,1027.7,0.81791548]
[1759364860476,0.90926011,1029.2,1027.7,0.81791548]
[1759364860678,0.90926011,1029.1,1027.7,0.81791548]
[1759364860877,0.90926011,1029.0,1027.7,0.81791548]
[1759364861082,0.90926011,1028.9,1027.7,0.81791548]
[1759364861277,0.90926011,1028.8,1027.7,0.81791548]
[1759364861477,0.86527895,1029.3,1027.7,0.81791548]
[1759364861682,0.9091313,1029.2,1027.7,0.81791548]
[1759364861882,0.9091313,1029.1,1027.7,0.81791548]
[1759364862080,0.9091313,1029.0,1027.7,0.81791548]
[1759364862277,0.9091313,1028.9,1027.7,0.81791548]
[1759364862480,0.9091313,1028.8,1027.7,0.81791548]
[1759364862683,0.86527895,1029.3,1027.7,0.81791548]
[1759364862881,0.90899547,1029.2,1027.7,0.81791548]
[1759364863079,0.90899547,1029.1,1027.7,0.81791548]
[1759364863282,0.90899547,1029.0,1027.7,0.81791548]
[1759364863483,0.90899547,1028.9,1027.7,0.81791548]
[1759364863682,0.90899547,1028.8,1027.7,0.81791548]
[1759364863886,0.86527895,1029.3,1027.7,0.81791548]
[1759364864082,0.90945666,1029.2,1027.7,0.81791548]
[1759364864384,0.90945666,1029.1,1027.7,0.81791548]
[1759364864580,0.90945666,1029.0,1027.7,0.81791548]
[1759364864785,0.90945666,1028.9,1027.7,0.81791548]
[1759364864983,0.90945666,1028.8,1027.7,0.81791548]
[1759364865186,0.86527895,1029.3,1027.7,0.81791548]
[1759364865383,1.77449852,1029.2,1027.7,0.81791548]
[1759364865580,0.90921957,1029.1,1027.7,0.81791548]
[1759364865885,1.77449852,1029.1,1027.6,0.64874652]
[1759364866087,0.90921957,1029.0,1027.6,0.64874652]